bitfinex/quotes_SOLUSD_20220307
["timestamp","ask_amount","ask_price","bid_price","bid_amount"]
[1646671202738,0.25,85.104,85.041,0.25]
[1646671203140,5.877,85.103,85.041,0.25]
[1646671203337,0.25,85.102,85.041,0.25]
[1646671203540,5.877,85.101,85.041,0.25]
[1646671203839,0.25,85.1,85.034,0.25]
[1646671204039,5.877,85.107,85.041,116.5]
[1646671204338,43.40638678,85.108,85.045,116.5]
[1646671204538,43.40638678,85.108,85.047,116.5]
[1646671204740,43.40638678,85.108,85.048,6.25]
[1646671205340,43.40638678,85.108,85.05,17.6362]
[1646671205641,43.40638678,85.108,85.002,0.24014332]
[1646671205840,6.0,85.107,85.002,141.3795]
[1646671206139,116.5,85.106,85.002,24.8795]
[1646671206339,116.5,85.099,85.01,50.82827117]
[1646671206541,116.5,85.099,85.01,17.6443]
[1646671206542,128.378,85.098,85.01,17.6443]
[1646671206740,0.25,85.097,85.011,6.0]
[1646671206940,0.25,85.097,85.01,5.5]
[1646671206941,116.5,85.095,85.01,5.5]
[1646671207143,116.5,85.093,85.002,49.4745]
[1646671207344,116.5,85.091,85.002,49.4745]
[1646671207542,116.5,85.089,85.002,49.4745]
[1646671207743,116.5,85.079,85.002,49.4745]
[1646671207942,145.3993,85.078,85.0,217.6462]
[1646671208146,116.5,85.076,85.0,80.13995558]
[1646671208343,22.6493,85.078,85.0,80.13995558]
[1646671208344,116.5,85.069,85.0,80.13995558]
[1646671208542,118.06710839,85.067,85.0,80.13995558]
[1646671208746,1.56710839,85.06,85.0,48.01013205]
[1646671208948,116.5,85.049,85.0,48.01013205]
[1646671209145,16.81,85.05,84.928,116.5]
[1646671209146,116.5,85.047,84.928,116.5]
[1646671209346,1.56710839,85.042,84.928,116.5]
[1646671209545,116.5,85.029,84.96,1.86174]
[1646671209748,12.132,85.028,84.96,1.86174]
[1646671209968,6.25,85.028,84.961,116.5]
[1646671210166,6.25,85.028,84.962,0.25]
[1646671210568,0.25,85.028,84.962,0.25]
[1646671210769,6.132,85.043,84.962,0.25]
[1646671210968,0.25,85.043,84.962,122.75]
[1646671211271,6.0,85.044,84.962,122.75]
[1646671211469,6.0,85.044,84.963,115.98746294]
[1646671211670,48.676,85.045,84.971,116.5]
[1646671211870,48.676,85.045,84.973,116.5]
[1646671212067,5.881,85.044,84.975,116.5]
[1646671212267,5.881,85.069,84.983,186.41]
[1646671212469,5.88,85.079,84.986,0.27885441]
[1646671212667,45.8703,85.09,85.011,40.76950422]
[1646671212869,45.8703,85.09,85.012,0.25]
[1646671213271,116.5,85.089,85.012,0.25]
[1646671213668,116.5,85.089,85.011,40.76950422]
[1646671213669,116.5,85.079,85.011,40.76950422]
[1646671213872,116.5,85.069,84.964,47.4952]
[1646671214070,122.5,85.068,84.965,6.0]
[1646671214273,116.5,85.066,84.965,6.0]
[1646671214472,6.0,85.068,84.966,116.5]
[1646671214473,11.881,85.065,84.966,116.5]
[1646671214674,2.83613526,85.065,84.969,0.22436797]
[1646671214873,6.25,85.064,84.97,116.5]
[1646671215073,6.25,85.064,84.972,116.5]
[1646671215273,6.25,85.064,84.969,44.15896202]
[1646671215274,5.881,85.063,84.973,6.0]
[1646671215474,6.25,85.062,84.974,0.25]
[1646671215675,133.31,85.06,84.969,44.15896202]
[1646671215878,12.131,85.059,84.969,44.15896202]
[1646671216075,17.6526,85.05,84.969,44.15896202]
[1646671216274,12.54948288,85.048,84.969,44.15896202]
[1646671216475,12.131,85.047,84.969,44.15896202]
[1646671216876,34.8584,85.047,84.969,44.15896202]
[1646671217502,34.8584,85.047,84.97,6.0]
[1646671217682,34.8584,85.047,84.969,44.15896202]
[1646671218280,2.83613526,85.046,84.969,44.15896202]
[1646671218483,12.131,85.045,84.969,44.15896202]
[1646671218680,116.5,85.044,84.969,44.15896202]
[1646671218882,116.5,85.039,84.969,44.15896202]
[1646671219081,12.132,85.038,84.969,44.15896202]
[1646671220281,14.96813526,85.038,84.969,44.15896202]
[1646671220681,131.46813526,85.038,84.969,44.15896202]
[1646671220882,131.46813526,85.038,84.96,1.86174]
[1646671221084,116.5,85.036,84.96,1.86174]
[1646671221282,116.5,85.029,84.96,1.86174]
[1646671221483,116.5,85.019,84.96,1.86174]
[1646671221689,116.5,85.017,84.96,1.86174]
[1646671221884,116.5,85.015,84.96,1.86174]
[1646671222084,12.133,85.014,84.96,1.86174]
[1646671222484,6.25,85.014,84.96,1.86174]
[1646671222685,0.25,85.014,84.96,1.86174]
[1646671222887,8.71913526,85.013,84.96,1.86174]
[1646671223095,16.81,85.01,84.96,1.86174]
[1646671223385,116.5,85.008,84.96,1.86174]
[1646671223688,12.54948288,84.998,84.96,1.86174]
[1646671223886,12.133,84.997,84.96,1.86174]
[1646671224584,116.5,84.989,84.96,1.86174]
[1646671224784,12.134,84.988,84.96,1.86174]
[1646671226187,11.884,84.988,84.96,1.86174]
[1646671226388,6.0,84.988,84.96,1.86174]
[1646671226588,5.884,84.987,84.96,1.86174]
[1646671226787,16.81,85.01,84.96,1.86174]
[1646671226989,6.0,85.009,84.96,1.86174]
[1646671227188,44.50268185,85.008,84.96,1.86174]
[1646671227488,6.0,85.007,84.96,1.86174]
[1646671227690,0.25,85.006,84.96,1.86174]
[1646671227988,0.25,85.006,84.95,42.44561608]
[1646671228188,0.25,85.006,84.951,0.25]
[1646671228388,5.883,85.005,84.951,0.25]
[1646671228588,6.0,85.004,84.951,0.25]
[1646671228790,5.883,85.003,84.951,0.25]
[1646671229189,5.883,85.008,84.951,0.25]
[1646671229390,6.0,85.007,84.951,0.25]
[1646671229791,0.25,85.006,84.951,0.25]
[1646671230195,0.25,85.012,84.951,0.25]
[1646671231192,5.883,85.011,84.951,0.25]
[1646671231393,6.25,85.01,84.951,0.25]
[1646671231594,5.883,85.009,84.951,0.25]
[1646671231793,6.25,85.008,84.951,0.25]
[1646671231992,6.25,85.008,84.951,116.75]
[1646671231993,6.0,85.008,84.951,116.75]
[1646671232392,5.883,85.028,84.961,116.5]
[1646671232593,5.882,85.041,84.963,0.28689651]
[1646671232797,6.0,85.04,84.963,0.28689651]
[1646671232993,5.882,85.039,84.962,122.75]
[1646671233193,6.0,85.038,84.962,122.75]
[1646671233394,5.882,85.037,84.98,17.6478]
[1646671233594,6.0,85.036,84.981,41.28421586]
[1646671233795,6.131,85.035,84.981,41.28421586]
[1646671233995,6.0,85.034,84.981,41.28421586]
[1646671234197,6.131,85.033,84.981,41.28421586]
[1646671234796,5.881,85.033,84.981,41.28421586]
[1646671235196,6.0,85.034,84.981,41.28421586]
[1646671235396,6.0,85.047,84.981,41.28421586]
[1646671235803,27.86949715,85.047,84.981,41.28421586]
[1646671235998,6.0,85.046,84.981,41.28421586]
[1646671236199,6.131,85.045,84.981,41.28421586]
[1646671236499,44.27598362,85.044,84.981,41.28421586]
[1646671236801,5.881,85.043,84.981,41.28421586]
[1646671236998,0.25,85.045,84.982,116.5]
[1646671237199,24.2981,85.058,84.983,0.25]
[1646671237398,24.2981,85.058,84.983,6.25]
[1646671237799,24.2981,85.058,84.99,17.6485]
[1646671237998,24.2981,85.058,84.991,6.25]
[1646671238200,5.88,85.057,84.992,0.25]
[1646671238400,5.88,85.057,84.984,116.5]
[1646671238600,5.88,85.057,84.986,116.5]
[1646671238800,7.44710839,85.066,84.988,116.5]
[1646671239000,7.44710839,85.066,84.99,116.5]
[1646671239001,5.88,85.066,84.99,116.5]
[1646671239203,5.88,85.066,84.992,116.5]
[1646671239404,5.88,85.068,84.993,6.25]
[1646671239601,28.24129715,85.066,84.994,42.48723671]
[1646671239802,6.13,85.065,84.995,6.25]
[1646671240003,7.8373149,85.064,84.995,6.25]
[1646671240203,6.13,85.063,84.995,6.25]
[1646671240403,62.33661299,85.063,84.995,6.25]
[1646671240804,28.24129715,85.062,84.995,6.25]
[1646671241004,6.13,85.061,84.995,6.25]
[1646671241608,6.13,85.061,85.0,17.6468]
[1646671241804,6.13,85.061,85.001,6.25]
[1646671244907,6.0,85.06,85.001,6.25]
[1646671245105,6.13,85.059,85.001,6.25]
[1646671245306,6.0,85.058,85.001,6.25]
[1646671245509,6.13,85.057,85.001,6.25]
[1646671245706,6.0,85.056,85.001,6.25]
[1646671245907,6.13,85.055,85.001,6.25]
[1646671246107,6.0,85.054,85.001,6.25]
[1646671246710,0.25,85.053,85.001,6.0]
[1646671246907,5.88,85.052,84.996,6.0]
[1646671247114,6.25,85.051,84.996,6.0]
[1646671247308,5.88,85.05,84.994,42.48723671]
[1646671247510,6.25,85.049,84.956,22.8481]
[1646671247708,17.6531,85.04,84.956,22.8481]
[1646671247909,12.131,85.039,84.956,22.8481]
[1646671248308,6.25,85.039,84.956,22.8481]
[1646671248508,6.25,85.039,84.985,45.97514045]
[1646671248808,5.881,85.038,84.985,45.97514045]
[1646671249009,6.0,85.037,84.986,0.25]
[1646671249216,6.0,85.039,84.986,0.25]
[1646671249614,5.881,85.056,84.986,0.25]
[1646671249811,5.881,85.056,84.99,17.6488]
[1646671250013,23.7304,85.07,84.991,0.25]
[1646671250213,23.7304,85.07,84.986,6.25]
[1646671250411,23.7304,85.07,84.987,139.3481]
[1646671250612,5.88,85.069,84.988,6.25]
[1646671250815,6.0,85.068,84.988,6.25]
[1646671251011,5.88,85.067,84.988,6.25]
[1646671251233,6.25,85.066,84.988,6.25]
[1646671251433,6.25,85.066,85.011,41.47036607]
[1646671252136,0.25,85.066,85.011,41.47036607]
[1646671252333,0.25,85.068,85.011,41.47036607]
[1646671254135,5.88,85.072,85.011,41.47036607]
[1646671254136,5.88,85.072,85.02,17.6429]
[1646671254334,2.83613526,85.09,85.02,17.6429]
[1646671254335,5.878,85.088,85.02,17.6429]
[1646671254534,24.3361,85.101,85.02,17.6429]
[1646671254535,6.0,85.087,85.022,0.2591436]
[1646671254739,6.0,85.088,85.022,122.7591436]
[1646671254934,6.0,85.096,85.024,116.5]
[1646671255135,6.0,85.098,85.04,17.6346]
[1646671255435,5.877,85.097,85.041,41.15946282]
[1646671255635,6.0,85.096,85.041,41.15946282]
[1646671256035,0.25,85.095,85.041,41.15946282]
[1646671256238,6.0,85.099,85.05,17.6368]
[1646671256537,6.0,85.099,85.051,0.25]
[1646671256737,5.877,85.098,85.051,0.25]
[1646671256936,6.0,85.097,85.051,0.25]
[1646671257137,5.877,85.096,85.051,0.25]
[1646671257340,6.0,85.095,85.051,0.25]
[1646671257538,0.25,85.094,85.042,0.25]
[1646671258638,0.25,85.098,85.042,0.25]
[1646671258838,1.81710839,85.098,85.041,40.90946282]
[1646671259038,11.877,85.097,85.041,40.90946282]
[1646671259239,6.25,85.096,85.041,40.90946282]
[1646671259441,5.877,85.095,85.041,40.90946282]
[1646671259638,6.25,85.094,85.041,40.90946282]
[1646671259841,5.877,85.093,85.041,40.90946282]
[1646671260039,6.25,85.092,85.041,40.90946282]
[1646671260241,0.25,85.091,85.041,40.90946282]
[1646671260440,6.0,85.091,85.041,40.90946282]
[1646671260639,0.25,85.09,85.041,40.90946282]
[1646671260840,6.25,85.094,85.041,40.90946282]
[1646671261241,5.877,85.093,85.041,40.90946282]
[1646671261441,6.25,85.092,85.041,40.90946282]
[1646671262042,0.25,85.092,85.041,40.90946282]
[1646671262743,17.6412,85.09,85.041,40.90946282]
[1646671262943,12.127,85.089,85.041,40.90946282]
[1646671263142,13.69410839,85.089,85.041,40.90946282]
[1646671263542,12.127,85.089,85.041,40.90946282]
[1646671263744,17.6454,85.08,85.041,40.90946282]
[1646671263942,6.25,85.079,85.041,40.90946282]
[1646671264549,6.0,85.079,85.041,40.90946282]
[1646671264749,6.0,85.088,85.041,40.90946282]
[1646671264950,0.25,85.087,85.05,17.6363]
[1646671265748,0.25,85.087,85.042,24.0998]
[1646671266248,6.25,85.093,85.042,24.0998]
[1646671266853,6.0,85.092,85.042,24.0998]
[1646671267049,0.25,85.091,85.042,24.0998]
[1646671267250,0.25,85.093,85.042,24.0998]
[1646671268351,5.877,85.092,85.042,24.0998]
[1646671268553,17.6412,85.09,85.042,24.0998]
[1646671268757,12.127,85.089,85.042,24.0998]
[1646671270656,6.25,85.089,85.042,24.0998]
[1646671271058,5.877,85.088,85.042,24.0998]
[1646671271259,6.25,85.087,85.042,24.0998]
[1646671271858,0.25,85.087,85.042,24.0998]
[1646671272357,1.81710839,85.088,85.042,24.0998]
[1646671272560,17.6436,85.08,85.012,24.6696]
[1646671272759,6.25,85.079,85.013,22.7866]
[1646671272958,5.878,85.078,85.013,22.7866]
[1646671273157,6.25,85.077,85.013,22.7866]
[1646671273359,43.52848516,85.076,85.014,35.11073281]
[1646671273561,6.25,85.075,85.014,35.11073281]
[1646671273764,5.878,85.074,85.014,35.11073281]
[1646671273962,0.25,85.073,85.014,35.11073281]
[1646671274262,5.878,85.072,85.014,35.11073281]
[1646671274460,0.25,85.071,85.014,35.11073281]
[1646671275360,0.25,85.071,85.015,0.25]
[1646671275561,0.25,85.073,85.015,0.25]
[1646671275763,5.878,85.072,85.015,0.25]
[1646671276062,0.25,85.071,85.015,0.25]
[1646671276665,0.25,85.071,85.02,17.6432]
[1646671276864,0.25,85.071,85.021,0.25]
[1646671277064,0.25,85.078,85.021,0.25]
[1646671277266,5.878,85.077,85.021,0.25]
[1646671277513,6.0,85.08,85.013,22.5366]
[1646671277727,1.56710839,85.069,85.013,22.5366]
[1646671277897,11.878,85.068,84.96,16.81]
[1646671278196,11.878,85.068,84.92,210.09]
[1646671278197,1.06710839,85.047,84.964,48.1495]
[1646671278397,17.6528,85.04,84.964,48.1495]
[1646671278599,44.83673325,85.039,84.966,37.19896224]
[1646671278798,128.382,85.038,84.966,37.19896224]
[1646671278995,0.25,85.037,84.964,48.1495]
[1646671279196,5.882,85.036,84.964,48.1495]
[1646671279398,17.6587,85.02,84.964,48.1495]
[1646671279596,12.132,85.019,84.964,48.1495]
[1646671279997,2.39155499,85.018,84.965,38.99918059]
[1646671280299,12.132,85.017,84.965,38.99918059]
[1646671280897,12.132,85.017,84.964,48.1495]
[1646671281296,6.25,85.017,84.964,48.1495]
[1646671281896,5.883,85.016,84.964,48.1495]
[1646671282097,17.6579,85.01,84.964,48.1495]
[1646671282297,12.133,85.009,84.964,48.1495]
[1646671282498,6.25,85.009,84.964,48.1495]
[1646671282697,5.883,85.008,84.964,48.1495]
[1646671282903,6.25,85.007,84.964,48.1495]
[1646671283101,5.883,85.006,84.964,48.1495]
[1646671283299,0.25,85.005,84.964,48.1495]
[1646671283499,5.883,85.004,84.965,39.26123461]
[1646671283702,0.25,85.003,84.965,39.26123461]
[1646671283903,5.883,85.002,84.965,39.26123461]
[1646671284101,0.25,85.001,84.965,39.26123461]
[1646671284402,5.883,85.0,84.965,39.26123461]
[1646671284600,23.0637,85.028,84.966,0.25]
[1646671284801,6.25,85.027,84.966,0.25]
[1646671285100,6.25,85.027,84.965,39.26123461]
[1646671285802,5.882,85.026,84.965,39.26123461]
[1646671286205,6.25,85.025,84.941,24.8754]
[1646671286405,17.6567,85.02,84.941,24.8754]
[1646671286706,122.633,85.019,84.941,24.8754]
[1646671286903,131.46913526,85.019,84.941,24.8754]
[1646671287302,17.663,85.0,84.942,39.94252874]
[1646671287504,6.25,84.999,84.942,39.94252874]
[1646671288106,6.25,84.999,84.941,24.8754]
[1646671288304,17.6631,84.99,84.9,16.81]
[1646671288506,6.25,84.989,84.922,30.1056]
[1646671288910,23.9426,84.998,84.922,30.1056]
[1646671289508,23.9426,84.998,84.93,17.6602]
[1646671289709,23.9426,84.998,84.922,30.1056]
[1646671289909,116.5,84.996,84.922,30.1056]
[1646671290110,116.5,84.994,84.923,45.24322466]
[1646671290310,116.5,84.992,84.924,6.0]
[1646671290511,12.135,84.991,84.924,6.0]
[1646671290709,17.9133,84.99,84.924,6.0]
[1646671290908,5.885,84.989,84.906,6.0]
[1646671291109,6.25,84.988,84.906,6.0]
[1646671291309,5.886,84.987,84.899,23.9268]
[1646671291510,6.25,84.986,84.907,44.22182618]
[1646671291713,30.5918,84.985,84.907,44.22182618]
[1646671291911,16.81,84.98,84.899,23.9268]
[1646671292109,12.136,84.979,84.899,23.9268]
[1646671292509,14.97213526,84.979,84.899,23.9268]
[1646671292709,14.97213526,84.979,84.906,6.25]
[1646671292911,14.97213526,84.979,84.907,41.31265447]
[1646671293111,14.97213526,84.979,84.908,6.25]
[1646671293309,11.886,84.979,84.908,6.25]
[1646671293909,11.886,84.979,84.909,23.0943]
[1646671294109,11.886,84.979,84.91,0.25]
[1646671294510,11.886,84.979,84.908,6.0]
[1646671294711,3.08613526,84.978,84.907,41.31265447]
[1646671294912,3.08613526,84.978,84.857,24.714]
[1646671294913,11.886,84.977,84.857,24.714]
[1646671295111,0.25,84.976,84.866,47.175]
[1646671295311,5.886,84.975,84.866,47.175]
[1646671295511,16.81,84.96,84.866,47.175]
[1646671295713,12.136,84.959,84.866,47.175]
[1646671295913,12.136,84.959,84.906,38.1624759]
[1646671296113,6.0,84.959,84.907,0.25]
[1646671296315,24.825,84.973,84.907,0.25]
[1646671296512,5.886,84.972,84.907,0.25]
[1646671296712,24.825,84.973,84.907,0.25]
[1646671297716,6.136,84.972,84.907,0.25]
[1646671298115,6.0,84.971,84.907,0.25]
[1646671298316,6.136,84.97,84.907,0.25]
[1646671298515,12.85011109,84.97,84.907,0.25]
[1646671298715,0.25,84.97,84.907,0.25]
[1646671298915,0.25,84.97,84.891,17.691]
[1646671298916,147.41800093,84.969,84.8,210.09]
[1646671299116,5.886,84.968,84.851,100.0]
[1646671299317,6.0,84.967,84.843,46.7996]
[1646671299517,6.136,84.966,84.844,17.881]
[1646671299719,6.136,84.966,84.845,116.5]
[1646671299720,6.0,84.965,84.845,116.5]
[1646671299918,44.00569511,84.964,84.906,48.1892133]
[1646671300119,6.0,84.963,84.906,48.1892133]
[1646671300318,0.25,84.962,84.906,48.1892133]
[1646671300721,6.0,84.966,84.907,0.25]
[1646671301022,5.886,84.972,84.907,28.8685]
[1646671301320,5.886,84.993,84.907,28.8685]
[1646671301521,44.1176197,84.991,84.908,22.8556]
[1646671301720,11.885,84.99,84.909,6.25]
[1646671301920,5.885,84.99,84.91,134.1605]
[1646671302120,5.885,84.991,84.912,116.5]
[1646671302323,6.135,84.991,84.914,116.5]
[1646671302726,34.79972095,84.991,84.915,6.25]
[1646671302927,34.79972095,84.991,84.915,0.25]
[1646671303126,27.04533234,84.99,84.915,0.25]
[1646671303326,6.135,84.989,84.915,0.25]
[1646671303530,5.885,84.989,84.921,116.5]
[1646671303739,5.885,84.99,84.923,116.5]
[1646671303939,5.885,84.993,84.925,116.5]
[1646671304140,27.04533234,85.016,84.928,105.0]
[1646671304342,3.15059274,85.058,84.942,69.91]
[1646671304545,65.8583,85.07,84.971,116.5]
[1646671304744,49.0483,85.07,84.972,6.83207242]
[1646671304943,5.881,85.053,84.973,5.881]
[1646671305141,5.881,85.053,84.974,6.25]
[1646671305343,5.881,85.053,84.975,44.68877028]
[1646671305542,5.881,85.069,84.976,6.25]
[1646671305740,5.881,85.069,84.977,0.58207242]
[1646671305940,5.881,85.069,84.977,117.08207242]
[1646671306142,5.881,85.069,84.981,116.5]
[1646671306349,2.83613526,85.068,84.982,31.42527242]
[1646671306541,5.88,85.067,84.983,0.58207242]
[1646671306740,5.88,85.067,84.982,30.8432]
[1646671306741,122.5,85.066,84.982,30.8432]
[1646671306941,6.13,85.065,84.982,30.8432]
[1646671307142,6.0,85.064,84.982,30.8432]
[1646671307342,6.13,85.063,84.982,30.8432]
[1646671307543,6.0,85.062,84.982,30.8432]
[1646671307744,6.13,85.061,84.982,30.8432]
[1646671307946,6.0,85.06,84.982,30.8432]
[1646671308144,6.13,85.059,84.982,30.8432]
[1646671308442,3.08613526,85.059,84.983,5.88]
[1646671308645,3.08613526,85.059,84.984,6.25]
[1646671308843,3.08613526,85.059,84.985,22.5444]
[1646671309043,5.88,85.058,84.986,6.25]
[1646671309243,0.25,85.057,84.991,42.62701723]
[1646671309443,5.88,85.056,84.992,6.0]
[1646671309643,0.25,85.055,84.992,6.0]
[1646671309845,5.88,85.054,84.992,6.0]
[1646671310043,5.88,85.058,84.993,0.25]
[1646671310246,5.88,85.068,84.994,0.27090346]
[1646671310446,5.88,85.068,85.0,17.6427]
[1646671310645,8.71613526,85.068,85.001,6.25]
[1646671310846,8.71613526,85.068,85.001,0.25]
[1646671310847,2.83613526,85.068,85.001,0.25]
[1646671311247,2.83613526,85.068,85.001,6.25]
[1646671311444,2.83613526,85.088,85.01,17.6417]
[1646671311649,11.878,85.087,85.011,24.9612]
[1646671312047,2.83613526,85.086,85.011,24.9612]
[1646671312246,11.878,85.085,85.011,24.9612]
[1646671312446,44.1356133,85.084,85.012,48.23229516]
[1646671312647,17.6465,85.08,85.011,24.7112]
[1646671312856,12.128,85.079,84.983,24.7112]
[1646671313049,35.9271,85.079,84.984,6.0]
[1646671313249,38.76323526,85.079,84.984,6.0]
[1646671313449,2.83613526,85.078,84.984,6.0]
[1646671313750,6.13,85.077,84.99,17.6462]
[1646671313948,6.13,85.077,84.991,6.0]
[1646671314148,2.83613526,85.076,84.991,6.0]
[1646671314349,0.25,85.075,84.991,6.0]
[1646671314948,2.83613526,85.074,84.986,6.0]
[1646671315149,0.25,85.073,84.987,0.25]
[1646671315349,0.25,85.073,85.0,17.6442]
[1646671315549,0.25,85.073,85.001,69.99641195]
[1646671315754,3.08613526,85.073,85.001,69.99641195]
[1646671316452,0.25,85.073,85.001,69.99641195]
[1646671316649,0.25,85.078,85.001,69.99641195]
[1646671317149,6.0,85.079,85.01,17.6426]
[1646671317352,6.0,85.082,85.011,6.25]
[1646671317550,11.878,85.086,85.011,6.25]
[1646671317952,11.878,85.086,85.012,23.3263]
[1646671318152,11.878,85.086,85.013,12.128]
[1646671318351,0.25,85.085,85.03,17.6367]
[1646671318551,0.25,85.085,85.031,0.25]
[1646671319552,6.0,85.086,85.031,0.25]
[1646671319753,6.0,85.086,85.017,36.51855195]
[1646671319954,2.83613526,85.084,84.967,23.8962]
[1646671320153,16.81,85.08,84.968,46.6426]
[1646671320354,6.0,85.079,84.968,46.6426]
[1646671320556,5.878,85.078,84.969,5.879]
[1646671320757,6.0,85.077,84.969,5.879]
[1646671320956,43.92345795,85.076,85.002,44.05763947]
[1646671321159,17.649,85.06,85.002,44.05763947]
[1646671321358,9.18283029,85.058,85.003,6.0]
[1646671321560,6.25,85.057,85.002,44.05763947]
[1646671321956,9.08613526,85.057,85.002,44.05763947]
[1646671322257,6.25,85.057,85.003,0.25]
[1646671322456,0.25,85.057,85.01,17.6433]
[1646671322757,0.25,85.065,85.011,0.25]
[1646671322958,5.878,85.064,85.011,0.25]
[1646671323157,6.25,85.063,85.003,24.632]
[1646671323359,17.6487,85.06,85.002,44.05763947]
[1646671323559,12.13,85.059,85.002,44.05763947]
[1646671323958,12.13,85.059,84.969,30.512]
[1646671324162,2.83613526,85.058,84.969,30.512]
[1646671324365,12.13,85.057,84.969,30.512]
[1646671324561,17.6509,85.05,84.969,30.512]
[1646671324760,128.63,85.049,84.969,24.632]
[1646671324961,0.41136809,85.048,84.973,36.85026047]
[1646671325159,116.5,85.046,84.969,24.632]
[1646671325360,116.5,85.042,84.951,5.88]
[1646671325561,116.5,85.029,84.952,6.0]
[1646671325859,17.661,85.01,84.953,5.883]
[1646671326061,12.133,85.009,84.921,5.883]
[1646671326262,32.27894756,85.008,84.922,36.01603314]
[1646671326462,12.134,85.007,84.923,5.884]
[1646671326860,6.25,85.007,84.924,24.4427]
[1646671327061,6.25,85.007,84.925,11.884]
[1646671327263,6.25,85.007,84.926,0.25]
[1646671327561,17.6613,85.0,84.927,5.884]
[1646671327764,12.134,84.999,84.928,6.25]
[1646671328062,12.134,84.999,84.929,5.884]
[1646671328262,116.5,84.998,84.93,6.25]
[1646671328462,12.134,84.997,84.93,6.25]
[1646671328661,17.6625,84.99,84.93,6.25]
[1646671328861,116.5,84.988,84.925,5.884]
[1646671329061,12.135,84.987,84.896,30.1887]
[1646671329264,116.5,84.986,84.896,30.1887]
[1646671329462,116.5,84.984,84.912,5.885]
[1646671329662,116.5,84.969,84.912,5.885]
[1646671329863,75.7096,84.98,84.896,24.3037]
[1646671329864,155.02894756,84.968,84.902,45.9064597]
[1646671330063,155.02894756,84.968,84.903,6.0]
[1646671331164,17.6702,84.96,84.903,6.0]
[1646671331366,6.25,84.959,84.905,1.86174]
[1646671331565,116.5,84.958,84.905,1.86174]
[1646671331768,116.5,84.956,84.905,1.86174]
[1646671331965,116.5,84.954,84.905,1.86174]
[1646671332165,6.25,84.955,84.905,1.86174]
[1646671332166,116.5,84.949,84.905,1.86174]
[1646671332366,116.5,84.947,84.905,1.86174]
[1646671332565,12.136,84.948,84.841,23.2896]
[1646671332566,116.5,84.945,84.848,40.48904977]
[1646671332765,16.81,84.94,84.848,40.48904977]
[1646671332966,12.139,84.939,84.849,5.889]
[1646671333167,5.889,84.939,84.849,5.889]
[1646671333466,9.08613526,84.938,84.849,5.889]
[1646671333669,17.6767,84.93,84.849,5.889]
[1646671333867,32.27894756,84.928,84.85,6.25]
[1646671334068,9.08613526,84.938,84.87,17.6717]